Cogmind - Beta 14 @@@ ROGUE MODE // 2024.09.09 @ 18:48:51 Player: rice Result: Self-destructed Performance ------------- Evolutions (1) 500 Regions Visited (3) 600 Robots Destroyed (19) 95 Value Destroyed (486) 486 Prototype IDs (1) 20 Alien Tech Used (0) 0 Bonus (0) 0 TOTAL SCORE: 1701 Bonus ------- None Cogmind --------- Core Integrity 275/400 Matter 290/300 Energy 125/125 System Corruption 0% Temperature Cool (0) Movement Treading (160) Location -9/Materials Parts ------- > --- POWER (1) -------- Light Ion Engine > --- PROPULSION (2) --- Light Treads Light Treads > --- UTILITY (4) ------ Heat Sink Improved Heat Sink Large Storage Unit Experimental Sensor Array > --- WEAPON (2) ------- Spread Laser Spread Laser > --- INVENTORY (15) --- Improved Aluminum Leg Small Storage Unit Spread Laser Spread Laser Heavy Assault Rifle Autogun Autogun Makeshift Sword Peak State ------------ > --- POWER ------------ Light Nuclear Core > --- PROPULSION ------- Light Treads Light Treads > --- UTILITY ---------- Heat Sink Improved Heat Sink Small Storage Unit Experimental Sensor Array > --- WEAPON ----------- Spread Laser Spread Laser > --- INVENTORY -------- Light Ion Engine Spread Laser Spread Laser Autogun Autogun Makeshift Sword [Rating: 24] Favorites ----------- Power Ion Engine Engine Ion Engine Power Core Light Nuclear Core Propulsion Light Treads Treads Light Treads Utility Heat Sink Device Heat Sink Storage Small Storage Unit Weapon Spread Laser Energy Gun Spread Laser Build | -11 -10 -10 -9 ------- Run | Yrd Mat Min Mat Slots Evolved 2 | . . . 2 Power . | . . . . Propulsion . | . . . . Utility 2 | . . . 2 Weapon . | . . . . Parts Attached 18 | 6 5 2 5 Power 3 | 1 . 1 1 Engine 2 | 1 . . 1 Core 1 | . . 1 . Reactor . | . . . . Propulsion 2 | 2 . . . Treads 2 | 2 . . . Leg . | . . . . Wheel . | . . . . Hover . | . . . . Flight . | . . . . Utility 9 | 1 3 1 4 Device 7 | . 3 1 3 Storage 2 | 1 . . 1 Processor . | . . . . Hackware . | . . . . Protection . | . . . . Artifact . | . . . . Weapon 4 | 2 2 . . Energy Gun 4 | 2 2 . . Energy Cannon . | . . . . Ballistic Gun . | . . . . Ballistic Cannon . | . . . . Launcher . | . . . . Special Weapon . | . . . . Impact Weapon . | . . . . Slashing Weapon . | . . . . Piercing Weapon . | . . . . Special Melee Weapon . | . . . . Unidentified Prototypes 1 | . . . 1 Parts Lost 1 | . . . 1 Power 1 | . . . 1 Propulsion . | . . . . Utility . | . . . . Weapon . | . . . . Highest Loss Streak 1 | . . . 1 To Critical Strikes . | . . . . Average Slot Usage (%) 98 | . 95 100 99 Engine 7 | . 14 10 . Core 4 | . . 3 9 Treads 25 | . 28 28 22 Device 19 | . 10 14 33 Storage 12 | . 14 14 11 Energy Gun 25 | . 28 28 22 Peak Build Rating 24 | 6 10 15 24 Average Rating 14 | 4 9 11 23 On Entrance 7 | . 6 10 15 Naked Turns . | . . . . Heaviest Build 34 | 13 18 17 34 Greatest Support 40 | 40 40 40 40 Greatest Overweight (x) . | . . . . Average Overweight (x) . | . . . . Largest Inventory Capacity 15 | 8 8 8 15 Average Capacity 10 | 7 8 8 14 Most Carried 9 | 1 8 8 9 Average Carried 7 | . 5 7 8 Final Capacity 15 | 8 8 8 15 Final Carried 8 | 1 8 8 8 Class Distribution -------------------- 100% | Mutant Dominant Class ---------------- Mutant | -10/Materials Mutant | -10/Mines Mutant | -9/Materials Resources | -11 -10 -10 -9 ----------- Run | Yrd Mat Min Mat Matter Collected 370 | 239 61 30 40 Remotely . | . . . . Salvage Created 430 | . 103 130 197 Parts 33 | . 7 7 19 Haulers Intercepted . | . . . . Recyclers Shooed . | . . . . Parts Field Recycled . | . . . . Retrieved Matter . | . . . . Parts Self-Destructed . | . . . . Prevented . | . . . . Kills | -11 -10 -10 -9 ------- Run | Yrd Mat Min Mat Combat Hostiles Destroyed 18 | . 3 6 9 Guns 18 | . 3 6 9 Classes Destroyed 3 | . 1 1 1 Operator 1 | . . . 1 Swarmer 7 | . . 3 4 Grunt 11 | . 3 3 5 Best Kill Streak 3 | . 3 3 3 Combat Bots Only 3 | . 3 3 3 Max Kills in Single Turn 1 | . 1 1 1 Gunslinging . | . . . . Exploded . | . . . . Melee . | . . . . Uniques/NPCs Destroyed . | . . . . Combat | -11 -10 -10 -9 -------- Run | Yrd Mat Min Mat Hostile Shots Fired 65 | . 4 16 45 Missed 12 | . . 2 10 Damage Taken 556 | . 43 168 345 Core 158 | . . 33 125 Absorbed by Shields . | . . . . Core Remaining (%) 93 | 100 . 86 . Volleys Fired 37 | . 7 11 19 Largest 2 | . 2 2 2 Hottest 130 | . 130 130 130 Shots Fired 74 | . 14 22 38 Gun 74 | . 14 22 38 Cannon . | . . . . Launcher . | . . . . Special . | . . . . Kinetic . | . . . . Thermal 74 | . 14 22 38 Explosive . | . . . . Electromagnetic . | . . . . Robot Hit Streak 9 | . 7 8 9 Robot Miss Streak 9 | . 5 6 9 Penetration Max . | . . . . Secondary Targets . | . . . . Shots Hit Robots 61 | . 12 17 32 Core Hits 75 | . 14 28 33 Critical Kills . | . . . . Critical Parts Destroyed . | . . . . Critical Strikes . | . . . . Melee Attacks . | . . . . Impact . | . . . . Slashing . | . . . . Piercing . | . . . . Sneak Attacks . | . . . . Combat Hostiles . | . . . . Follow-up Attacks . | . . . . Damage Inflicted 678 | . 144 197 337 Guns 678 | . 144 197 337 Cannons . | . . . . Explosions . | . . . . Melee . | . . . . Ramming . | . . . . Kinetic . | . . . . Thermal 678 | . 144 197 337 Explosive . | . . . . Electromagnetic . | . . . . Impact . | . . . . Slashing . | . . . . Piercing . | . . . . Highest Corruption . | . . . . Average Corruption . | . . . . Corruption Purged . | . . . . Corruption Blocked . | . . . . Overload Shots . | . . . . Overflow Damage . | . . . . Projectiles . | . . . . Explosions . | . . . . Melee . | . . . . Knockbacks . | . . . . Impact . | . . . . Kinetic . | . . . . Secondary . | . . . . Self-Inflicted Damage . | . . . . Shots . | . . . . Rammed . | . . . . Targets Rammed . | . . . . Kicked . | . . . . Crushed . | . . . . Highest Temperature 349 | . 349 183 51 Average Temperature 94 | . 151 81 17 Received Heat Transfer 240 | . 24 90 126 Effects 1 | . 1 . . Energy Bleed 1 | . 1 . . Siege Activations . | . . . . Robots Corrupted . | . . . . Combat Hostiles . | . . . . Parts Fried . | . . . . Impact Corruptions . | . . . . Robots Melted . | . . . . Combat Hostiles . | . . . . Parts Melted . | . . . . Heat Transferred 830 | . 190 245 395 Parts Sabotaged . | . . . . Parts Stolen . | . . . . Parts Stripped . | . . . . Power Chain Reactions . | . . . . Alert | -11 -10 -10 -9 ------- Run | Yrd Mat Min Mat Peak Influence 217 | . 100 70 217 Initial 27 | . . . 27 Average 49 | . 41 28 86 Maximum Alert Level 1 | . . . 1 Low Security (%) 95 | 100 100 100 86 Level 1 4 | . . . 13 Level 2 . | . . . . Level 3 . | . . . . Level 4 . | . . . . Level 5 . | . . . . High Security . | . . . . Max Security . | . . . . Squads Dispatched 3 | . 1 . 2 Investigation 2 | . 1 . 1 Extermination . | . . . . Reinforcement 1 | . . . 1 Assault . | . . . . Garrison . | . . . . Intercept . | . . . . Searches Triggered . | . . . . Construction Impeded . | . . . . Haulers Reinforced . | . . . . Active Scanning Responses . | . . . . Cargo Convoy Interrupts . | . . . . Stealth | -11 -10 -10 -9 --------- Run | Yrd Mat Min Mat Distress Signals 1 | . 1 . . Communications Jammed . | . . . . Distress Signals . | . . . . Times Spotted 22 | . 8 6 8 Peak Tracking Total 4 | . 4 3 4 Tactical Retreats 2 | . 1 . 1 Traps | -11 -10 -10 -9 ------- Run | Yrd Mat Min Mat Traps Triggered 1 | . 1 . . Indirectly . | . . . . Trap Hack Attempts . | . . . . Triggered . | . . . . Disarmed . | . . . . Reprogrammed . | . . . . Reused . | . . . . Traps Extracted . | . . . . Installed . | . . . . Triggered . | . . . . Machines | -11 -10 -10 -9 ---------- Run | Yrd Mat Min Mat Machines Disabled . | . . . . Max in Single Turn . | . . . . Machines Repaired . | . . . . Machines Dismantled . | . . . . Machines Sabotaged . | . . . . Overloaded Fab Kills . | . . . . Hacking | -11 -10 -10 -9 --------- Run | Yrd Mat Min Mat Machines Accessed 1 | . . . 1 Terminals 1 | . . . 1 Fabricators . | . . . . Repair Stations . | . . . . Recycling Units . | . . . . Scanalyzers . | . . . . Garrison Access . | . . . . Total Hacks 2 | . . . 2 Successful . | . . . . Failed 2 | . . . 2 Catastrophic . | . . . . Database Lockouts . | . . . . Manual 2 | . . . 2 Terminals 2 | . . . 2 Fabricators . | . . . . Repair Stations . | . . . . Recycling Units . | . . . . Scanalyzers . | . . . . Garrison Access . | . . . . Terminal Hacks . | . . . . Fabricator Hacks . | . . . . Repair Station Hacks . | . . . . Recycling Unit Hacks . | . . . . Scanalyzer . | . . . . Garrison Access Hacks . | . . . . Unauthorized Hacks . | . . . . Terminals . | . . . . Fabricators . | . . . . Repair Stations . | . . . . Recycling Units . | . . . . Scanalyzers . | . . . . Garrison Access . | . . . . Data Cores Recovered . | . . . . Used . | . . . . Hacking Detections 1 | . . . 1 Full Trace Events 1 | . . . 1 Feedback Events . | . . . . Feedback Blocked . | . . . . Robot Schematics Acquired . | . . . . Robots Built . | . . . . Authchips . | . . . . Time . | . . . . Total Robot Build Rating . | . . . . Part Schematics Acquired . | . . . . Parts Built . | . . . . Authchips . | . . . . Time . | . . . . Total Part Build Rating . | . . . . Parts Repaired . | . . . . Time . | . . . . Parts Recycled . | . . . . Recycled Matter . | . . . . Retrieved Matter . | . . . . Retrieved Components . | . . . . Parts Scanalyzed . | . . . . Part Schematics Acquired . | . . . . Parts Damaged . | . . . . Bothacking | -11 -10 -10 -9 ------------ Run | Yrd Mat Min Mat Used RIF Installer . | . . . . Robots Hacked . | . . . . Non-combat . | . . . . Combat . | . . . . Robot Hacks Applied . | . . . . Relay Couplers Released . | . . . . Fabnet Peak Effective % . | . . . . Robots Rewired . | . . . . Allies Hacked . | . . . . Hacks Repelled . | . . . . Allies | -11 -10 -10 -9 -------- Run | Yrd Mat Min Mat Total Allies . | . . . . Largest Group . | . . . . Highest-Rated Group . | . . . . Highest-Rated Ally . | . . . . Total Orders . | . . . . Ally Attacks . | . . . . Total Damage . | . . . . Kills . | . . . . Allies Corrupted . | . . . . Allies Melted . | . . . . Intel | -11 -10 -10 -9 ------- Run | Yrd Mat Min Mat Robot Analysis Total . | . . . . Derelict Logs Recovered 2 | . . 2 . Drone Launches . | . . . . Drone Recoveries . | . . . . Exploration | -11 -10 -10 -9 ------------- Run | Yrd Mat Min Mat Turns Passed 2169 | 89 463 912 705 Spaces Moved 1018 | 52 245 529 192 Core 3 | 3 . . . Treads 1015 | 49 245 529 192 Legs . | . . . . Wheels . | . . . . Hover . | . . . . Flight . | . . . . Fastest Speed 50 | 50 160 160 160 Average Speed 159 | 153 160 160 160 Slowest Speed 160 | 160 160 160 160 Overloaded Moves . | . . . . Propulsion Burnouts . | . . . . Robots Hopped . | . . . . Cave-ins Triggered . | . . . . Exploration Rate (%) 34 | 4 26 91 18 Regions Visited 3 Branch Regions 1 Pre-discovered Areas . | . . . . Known Exits Taken . | . . . . Unknown Exits Taken 3 | 1 1 1 . Scrap Searched 1 | . . 1 . Spaces Dug . | . . . . Terrain Destroyed . | . . . . Melee . | . . . . Projectile . | . . . . AOE . | . . . . Terrain Rammed . | . . . . Walls Destroyed . | . . . . Machines Disabled . | . . . . Actions | -11 -10 -10 -9 --------- Run | Yrd Mat Min Mat Total 1485 | 58 301 575 551 Wait 397 | . 37 28 332 Move 1015 | 51 244 528 192 Hop . | . . . . Pick Up 11 | 1 6 2 2 Fast Attach 7 | 6 1 . . Attach 3 | . . . 3 Detach . | . . . . Swap 8 | . 4 2 2 Drop 7 | . 2 4 1 Fire 37 | . 7 11 19 Melee . | . . . . Ram . | . . . . Kick . | . . . . Crush . | . . . . Escape Stasis . | . . . . Rewire . | . . . . Trap . | . . . . Miscellaneous . | . . . . Route ------- -11/Scrapyard -10/Materials -10/Mines (discovered 2 exits: *Mat x2) -9/Materials (discovered 1 exit: Min) History --------- Turn | Location | Event 55 | -11/Scrapyard | Discovered new exit (range 15) 90 | -11/Scrapyard | Entered Materials 306 | -10/Materials | Build established: Mutant 437 | -10/Materials | Discovered new exit (range 16) 553 | -10/Materials | Entered Mines 581 | -10/Mines | Learned 4 Materials zone layouts 760 | -10/Mines | A weapon hastily lodged in a ceiling crevice suddenly fell to the ground 1028 | -10/Mines | Found a damaged Exp. Sensor Array with a note attached 1032 | -10/Mines | Found Prototype Device 1310 | -10/Mines | Discovered new exit (range 4) 1367 | -10/Mines | Discovered new exit (range 10) 1465 | -10/Mines | Entered Materials 1465 | -9/Materials | Evolved 2 slots: Utility x2 1466 | -9/Materials | Identified exit to Mines 1466 | -9/Materials | Identified Exp. Sensor Array 2170 | -9/Materials | Self-destructed Last Messages --------------- 01778_ Acquired 10 matter. 01810_ R-06 Scavenger collects Lgt. Assault Rifle. 01813_ R-06 Scavenger collects Heat Sink. 01816_ R-06 Scavenger collects Flight Unit. 01851_ Acquired Imp. Aluminum Leg. 01940_ O-16 Technician: "IFF HANDSHAKE FAILED. SECURING TERMINAL." 01948_ ALERT: Hostiles spotted, dispatching reinforcements to Terminal M006. 02071_ G-34 Mercenary destroyed. 02072_ Lgt. Nuclear Core destroyed. 02080_ K-01 Serf collects debris. 02082_ R-06 Scavenger collects Ion Engine. 02086_ R-06 Scavenger collects Sml. Laser. 02092_ G-34 Mercenary destroyed. 02119_ R-06 Scavenger collects Sml. Laser. 02127_ O-16 Technician destroyed. 02131_ R-06 Scavenger collects Lgt. Ion Engine. 02135_ R-06 Scavenger collects Hover Unit. Map ----- +----------------------------------------------------+ | ???????????????#######?????# ###########?? | | ????????????????????######## # ]]#?? | | ????????????????????# # #"S ] #?? | | ????????????????????# # #""" #?? | | ????????????????????#""" = # # "" #?? | | ????????????????????#""" # # """ #?? | | ????????????????????#""" + + """ #?? | | ????????????????????# # # """ #?? | | ????????????????????# # #! #?? | | ????????????????????######## ###+##+####?? | | ??????????????##+########## #????? | | ????????????? %% #????? | | ????????????? ^ #????? | | ????????????? ^ """ " % " #????? | | ????????????????#?# """ """ """ #????? | | ????????????????????^""" """ """ ?#????? | | ??????????????????? """ """ """ #????? | | ???????????????????? """ "" "" #????? | | ???????????????????? """ """ #????? | | ???????????????????? "" "" #????? | | ???????????????????####### """ """ #????? | | ?????????????????????????# " " #????? | | ?????????????????????????# #????? | | ?????????????????????????# #????? | | ?????????????????######### ####+###??? | | ?????????? @ + """ # | | ?????????????????################# "T" # | | ?????????????????????????????????# # | | ?????????????????????????????????# # | | ?????????????????????????????????########### | | | | | | | | | | | | | | | | | | | | | | | | | | | | | | | | | | | | | | | | | +----------------------------------------------------+ Best States ------------- Heat Dissipation 52 Energy Generation 14 Energy Capacity 250 Matter Stores 300 Matter Capacity 300 Sight Range 16 Robot Scan Range 20 Terrain Scan Density 10 ECM Strength 1 Evasion (%) 40 Recoil Reduction 2 Item Schematics ----------------- None Robot Schematics ------------------ None Fabricated ------------ Nothing Alien Tech Used ----------------- None Achievements -------------- None Challenges ------------ None Game ------ Seed DecoderPlatingExoskeleton Manual? 0 Play Time 00:09:56 Cumulative 23.1 hours Start 2024.09.09 @ 18:15:11 End 2024.09.09 @ 18:48:51 Sessions 3 Manual Loads 0 Difficulty Rogue Special Mode None Game No. 49 Rogue 49 Adventurer 0 Explorer 0 Win Type - Total 0 Types 0/0/0/0/0/0/0/0/0 Lore% 7 Gallery% 24 Achievement% 22 Wizard Run 0 Options --------- Layout 1 ASCII 0 Keyboard 1 Movement Numpad Keybinds 0 Fullscreen 1 Font 24/Smallcaps Map View 50x35 Zoom Use 0% Tactical HUD 1 Map Filters NONE Filters NONE Steam 1 RUN: d0f26571-385c-468e-b904-3202a19cc1f4